bitfinex-derivatives/quotes_BTCF0:USTF0_20240913
["timestamp","ask_amount","ask_price","bid_price","bid_amount"]
[1726225038281,0.30337207,58353.0,58352.0,0.085681]
[1726225038787,0.09969107,58353.0,58352.0,0.085681]
[1726225039284,0.28765953,58353.0,58352.0,0.085681]
[1726225039485,0.09969107,58353.0,58352.0,0.085681]
[1726225042184,0.18537207,58353.0,58352.0,0.085681]
[1726225042487,0.085682,58352.0,58347.0,0.50907631]
[1726225042690,0.085682,58352.0,58348.0,0.085688]
[1726225042691,0.27387015,58349.0,58348.0,0.085688]
[1726225042891,0.12,58348.0,58347.0,0.3608]
[1726225043086,0.17259107,58348.0,58347.0,0.446489]
[1726225043281,0.25827907,58348.0,58347.0,0.3608]
[1726225044386,0.25827907,58348.0,58347.0,0.3638]
[1726225044896,0.61907907,58348.0,58347.0,0.007]
[1726225045089,0.68053208,58348.0,58347.0,0.007]
[1726225045281,0.566488,58348.0,58347.0,0.007]
[1726225045481,0.447488,58348.0,58347.0,0.007]
[1726225045694,0.447488,58348.0,58347.0,0.092689]
[1726225045695,0.001,58348.0,58347.0,0.092689]
[1726225045991,0.001,58348.0,58347.0,0.16056639]
[1726225046182,0.4059,58353.0,58352.0,0.085682]
[1726225046695,0.4059,58353.0,58352.0,0.13664564]
[1726225047688,0.3608,58353.0,58352.0,0.13664564]
[1726225048092,0.085674,58358.0,58357.0,0.085674]
[1726225048598,0.0525,58365.0,58356.0,0.05095569]
[1726225048790,0.134163,58365.0,58361.0,0.2]
[1726225049004,0.085663,58365.0,58364.0,0.085664]
[1726225051189,0.099663,58365.0,58364.0,0.086664]
[1726225051901,0.111663,58365.0,58364.0,0.086664]
[1726225052590,0.07858615,58365.0,58364.0,0.086664]
[1726225055295,0.07858646,58365.0,58364.0,0.086664]
[1726225057100,0.07858646,58365.0,58364.0,0.001]
[1726225057999,0.07858646,58365.0,58364.0,0.086664]
[1726225060391,0.026,58365.0,58364.0,0.15461552]
[1726225061001,0.026,58365.0,58364.0,0.086664]
[1726225062399,0.026,58365.0,58364.0,0.15461552]
[1726225063000,0.111663,58365.0,58364.0,0.001]
[1726225064802,0.521663,58365.0,58364.0,0.001]
[1726225065312,0.111663,58365.0,58364.0,0.001]
[1726225068101,0.231663,58365.0,58364.0,0.001]
[1726225070705,0.231663,58365.0,58364.0,0.086664]
[1726225070915,0.231663,58365.0,58364.0,0.13758074]
[1726225071113,0.146,58365.0,58364.0,0.13758074]
[1726225071312,0.026,58365.0,58364.0,0.13758074]
[1726225072309,0.026,58365.0,58364.0,0.086664]
[1726225072704,0.026,58365.0,58364.0,0.13758764]
[1726225072904,0.026,58365.0,58364.0,0.13758759]
[1726225075205,0.026,58365.0,58364.0,0.086664]
[1726225075406,0.07858619,58365.0,58364.0,0.086664]
[1726225075916,0.16424919,58365.0,58364.0,0.086664]
[1726225076615,0.026,58365.0,58364.0,0.086664]
[1726225079026,0.3868,58365.0,58364.0,0.086664]
[1726225079227,0.43938901,58365.0,58364.0,0.086664]
[1726225080319,0.43938944,58365.0,58364.0,0.086664]
[1726225081817,0.07858944,58365.0,58364.0,0.086664]
[1726225082018,0.43938944,58365.0,58364.0,0.086664]
[1726225082220,0.3868,58365.0,58364.0,0.086664]
[1726225082615,0.026,58365.0,58364.0,0.086664]
[1726225083121,0.026,58365.0,58364.0,0.30209556]
[1726225083323,0.026,58365.0,58364.0,0.38775956]
[1726225083719,0.026,58365.0,58364.0,0.38775955]
[1726225085828,0.026,58365.0,58364.0,0.19990554]
[1726225086018,0.026,58365.0,58364.0,0.33045904]
[1726225087320,0.026,58365.0,58364.0,0.30209551]
[1726225087528,0.111663,58365.0,58364.0,0.30209551]
[1726225088325,0.111663,58365.0,58364.0,0.2172175]
[1726225088525,0.111663,58365.0,58364.0,0.34777102]
[1726225088727,0.111663,58365.0,58364.0,0.21721752]
[1726225089513,0.111663,58365.0,58364.0,0.3022462]
[1726225089827,0.111663,58365.0,58364.0,0.17168692]
[1726225090529,0.16424908,58365.0,58364.0,0.086664]
[1726225096028,0.07858608,58365.0,58364.0,0.086664]
[1726225097331,0.16424908,58365.0,58364.0,0.086664]
[1726225097528,0.111663,58365.0,58364.0,0.086664]
[1726225098634,0.111663,58365.0,58364.0,0.15468243]
[1726225103228,0.111663,58365.0,58364.0,0.086664]
[1726225111842,0.026,58365.0,58364.0,0.086664]
[1726225112736,0.07858464,58365.0,58364.0,0.086664]
[1726225112940,0.21453504,58365.0,58364.0,0.172328]
[1726225113147,0.26711968,58365.0,58364.0,0.172328]
[1726225113334,0.26711948,58365.0,58364.0,0.172328]
[1726225113733,0.07858444,58365.0,58364.0,0.257992]
[1726225113943,0.07858444,58365.0,58364.0,0.292328]
[1726225115141,0.06658444,58365.0,58364.0,0.172328]
[1726225115352,0.07458444,58365.0,58364.0,0.292328]
[1726225115543,0.07458444,58365.0,58364.0,0.172328]
[1726225115840,0.07458444,58365.0,58364.0,0.292328]
[1726225115841,0.07158444,58365.0,58364.0,0.292328]
[1726225116341,4e-08,58365.0,58364.0,1.491992]
[1726225117434,4e-08,58365.0,58364.0,1.406328]
[1726225117634,0.004,58372.0,58371.0,0.085654]
[1726225117835,0.085659,58369.0,58368.0,0.085658]
[1726225118039,0.13823618,58369.0,58368.0,0.085658]
[1726225118245,0.085663,58366.0,58365.0,0.085662]
[1726225118438,0.13824018,58366.0,58365.0,0.085662]
[1726225120350,0.13924018,58366.0,58365.0,0.094662]
[1726225120544,0.13924018,58366.0,58365.0,0.102662]
[1726225120741,0.04380585,58366.0,58365.0,0.102662]
[1726225121547,0.001,58366.0,58365.0,0.102662]
[1726225130161,0.206662,58366.0,58365.0,0.102662]
[1726225133553,0.001,58366.0,58365.0,0.102662]
[1726225133753,0.121,58366.0,58365.0,0.102662]
[1726225134467,0.206662,58366.0,58365.0,0.017]
[1726225135753,0.292324,58366.0,58365.0,0.017]
[1726225135955,0.292324,58366.0,58365.0,0.0680129]
[1726225136156,0.206662,58366.0,58365.0,0.017]
[1726225140060,0.086662,58366.0,58365.0,0.15365277]
[1726225140257,0.086662,58366.0,58365.0,0.102663]
[1726225144160,0.086662,58366.0,58365.0,0.13203208]
[1726225144368,0.13924715,58366.0,58365.0,0.13203208]
[1726225144768,0.05358515,58366.0,58365.0,0.102663]
[1726225145672,0.05358515,58366.0,58365.0,0.188326]
[1726225145870,0.05358515,58366.0,58365.0,0.634789]
[1726225146065,0.05358515,58366.0,58365.0,1.748789]
[1726225147670,0.08975952,58377.0,58374.0,0.1713]
[1726225147869,0.08975952,58377.0,58376.0,0.085647]
[1726225150064,0.08975952,58377.0,58376.0,0.171294]
[1726225150563,0.09375952,58377.0,58376.0,0.20007425]
[1726225150968,0.09575952,58377.0,58376.0,0.20007425]
[1726225155277,0.09575952,58377.0,58376.0,0.11442725]
[1726225157883,0.09575952,58377.0,58376.0,0.16541476]
[1726225163878,0.09575952,58377.0,58376.0,0.52621476]
[1726225164680,0.09575952,58377.0,58376.0,0.16541476]
[1726225164884,0.09575952,58377.0,58376.0,0.52621476]
[1726225165187,0.09575952,58377.0,58376.0,0.47522725]
[1726225165786,0.05291235,58377.0,58376.0,0.47522725]
[1726225166786,0.13855735,58377.0,58376.0,0.446447]
[1726225167381,0.05291235,58377.0,58376.0,0.566447]
[1726225169185,0.05291235,58377.0,58376.0,0.652094]
[1726225171882,0.05291235,58377.0,58376.0,0.657094]
[1726225171883,0.05091235,58377.0,58376.0,0.657094]
[1726225172782,0.05091235,58377.0,58376.0,0.72505964]
[1726225172977,0.04691235,58377.0,58376.0,0.63941264]
[1726225173182,0.04691235,58377.0,58376.0,0.660094]
[1726225173786,0.04891235,58377.0,58376.0,0.676094]
[1726225176680,0.04791235,58377.0,58376.0,0.663094]
[1726225176885,0.04891235,58377.0,58376.0,0.676094]
[1726225180784,0.10148088,58377.0,58376.0,0.676094]
[1726225181095,0.10148088,58377.0,58376.0,0.470447]
[1726225181592,0.10148088,58377.0,58376.0,0.556094]
[1726225181785,0.10148088,58377.0,58376.0,0.676094]
[1726225182395,0.10148088,58377.0,58376.0,0.761741]
[1726225182988,0.04891235,58377.0,58376.0,0.676094]
[1726225183193,0.04891235,58377.0,58376.0,0.761741]
[1726225186590,0.10148087,58377.0,58376.0,0.761741]
[1726225187903,0.04891235,58377.0,58376.0,0.80660739]
[1726225188108,0.04891235,58377.0,58376.0,0.89225439]
[1726225190302,0.04891235,58377.0,58376.0,0.80660739]
[1726225190501,0.04891235,58377.0,58376.0,0.89225439]
[1726225190697,0.04891235,58377.0,58376.0,0.80660739]
[1726225190903,0.04891235,58377.0,58376.0,0.89225439]
[1726225191499,0.04891235,58377.0,58376.0,0.80660739]
[1726225191700,0.04891235,58377.0,58376.0,0.68660739]
[1726225191901,0.04891235,58377.0,58376.0,0.80660739]
[1726225192208,0.04891235,58377.0,58376.0,0.89225439]
[1726225192913,0.04891235,58377.0,58376.0,0.80660739]
[1726225193208,0.04891235,58377.0,58376.0,0.89225439]
[1726225193399,0.04891235,58377.0,58376.0,0.80660739]
[1726225193595,0.04891235,58377.0,58376.0,0.89225439]
[1726225194106,0.04891235,58377.0,58376.0,0.80660739]
[1726225194803,0.04891235,58377.0,58376.0,0.89225439]
[1726225195017,0.04891235,58377.0,58376.0,0.80660739]
[1726225195218,0.04891235,58377.0,58376.0,0.89225439]
[1726225195906,0.04891235,58377.0,58376.0,0.676094]
[1726225196214,0.04891235,58377.0,58376.0,0.761741]
[1726225196602,0.04891235,58377.0,58376.0,0.676094]
[1726225198010,0.10148084,58377.0,58376.0,1.875661]
[1726225198315,0.10148084,58377.0,58376.0,0.676094]
[1726225198502,0.04891235,58377.0,58376.0,0.676094]
[1726225199601,0.04891235,58377.0,58376.0,0.761741]
[1726225200508,0.25455735,58377.0,58376.0,0.024]
[1726225200710,0.25455735,58377.0,58368.0,0.085657]
[1726225200711,0.085659,58369.0,58368.0,0.085657]
[1726225200913,0.25822925,58369.0,58368.0,0.085657]
[1726225201117,0.13822925,58369.0,58368.0,0.085657]
[1726225201415,0.05257025,58369.0,58368.0,0.085657]
[1726225201600,0.05257687,58369.0,58367.0,0.12]
[1726225201805,0.28448485,58373.0,58372.0,0.085653]
[1726225201806,0.0489,58373.0,58372.0,0.085653]
[1726225202114,0.0489,58373.0,58372.0,0.566453]
[1726225202310,0.04891235,58377.0,58376.0,0.085647]
[1726225202611,0.10148259,58377.0,58376.0,0.085647]
[1726225202916,0.04891235,58377.0,58376.0,0.31810686]
[1726225203110,0.04791235,58377.0,58376.0,0.31810686]
[1726225203314,0.04691235,58377.0,58376.0,0.2161584]
[1726225204210,0.04791235,58377.0,58376.0,0.2161584]
[1726225204414,0.04891235,58377.0,58376.0,0.2171584]
[1726225205213,0.04891235,58377.0,58376.0,0.24543835]
[1726225206818,0.13455735,58377.0,58376.0,0.21650961]
[1726225207202,0.13455735,58377.0,58376.0,0.001]
[1726225208208,0.13455735,58377.0,58376.0,0.086647]
[1726225210004,0.13455735,58377.0,58376.0,0.001]
[1726225210611,0.33455735,58377.0,58376.0,0.001]
[1726225210818,0.33455735,58377.0,58376.0,0.086647]
[1726225210819,0.38713316,58377.0,58376.0,0.086647]
[1726225211815,0.18713316,58377.0,58376.0,0.086647]
[1726225212317,0.13455735,58377.0,58376.0,0.086647]
[1726225213813,0.27277805,58377.0,58376.0,0.001]
[1726225214024,1.63661725,58377.0,58376.0,0.001]
[1726225214213,1.4481324,58377.0,58376.0,0.001]
[1726225215215,0.085656,58370.0,58369.0,0.004]
[1726225215411,0.085663,58366.0,58365.0,0.085663]
[1726225215615,0.13824212,58366.0,58365.0,0.085663]
[1726225216312,0.13624212,58366.0,58365.0,0.085663]
[1726225217126,0.13624212,58366.0,58365.0,0.087663]
[1726225217127,0.084663,58366.0,58365.0,0.087663]
[1726225217518,0.085663,58366.0,58365.0,0.097663]
[1726225217819,0.0256628,58366.0,58365.0,0.33015476]
[1726225218025,0.085663,58366.0,58365.0,0.33015473]
[1726225219130,0.085663,58366.0,58365.0,0.22820627]
[1726225222030,0.09220071,58369.0,58368.0,0.085659]
[1726225222221,0.00088,58373.0,58372.0,0.085653]
[1726225222518,0.334147,58376.0,58373.0,0.08565]
[1726225222519,0.11426656,58374.0,58373.0,0.08565]
[1726225222726,0.085651,58374.0,58373.0,0.3010526]
[1726225222912,0.085651,58374.0,58373.0,0.30104869]
[1726225223319,0.085651,58374.0,58373.0,0.2161793]
[1726225224322,0.21181936,58376.0,58375.0,0.085648]
[1726225224625,0.21181936,58376.0,58375.0,0.17052411]
[1726225225323,0.21181936,58376.0,58375.0,0.30105304]
[1726225225731,0.21281936,58376.0,58375.0,0.31205304]
[1726225225920,0.21281936,58376.0,58375.0,0.096648]
[1726225226429,0.21381936,58376.0,58375.0,0.097648]
[1726225227927,0.41381936,58376.0,58375.0,0.012]
[1726225228125,0.33381936,58376.0,58375.0,0.012]
[1726225228524,0.33381936,58376.0,58375.0,0.097648]
[1726225231428,0.33381936,58376.0,58375.0,0.14857629]
[1726225231927,0.33381936,58376.0,58375.0,0.097648]
[1726225232120,0.21381936,58376.0,58375.0,0.097648]
[1726225232431,0.33381936,58376.0,58375.0,0.14857629]
[1726225232626,0.33381936,58376.0,58375.0,0.012]
[1726225233021,0.38639427,58376.0,58375.0,0.012]
[1726225233733,0.47204227,58376.0,58375.0,0.012]
[1726225234027,0.085657,58369.0,58368.0,0.004]
[1726225234232,0.25823191,58369.0,58368.0,0.085659]
[1726225235328,0.25923191,58369.0,58368.0,0.096659]
[1726225235627,0.26023191,58369.0,58368.0,0.097659]
[1726225236128,0.34023191,58369.0,58368.0,0.012]
[1726225236531,0.08338212,58369.0,58368.0,0.097659]
[1726225236723,0.16903912,58369.0,58368.0,0.097659]
[1726225237120,0.16904559,58369.0,58368.0,0.097659]
[1726225237529,0.36904559,58369.0,58368.0,0.012]
[1726225238833,0.36904559,58369.0,58368.0,0.097659]
[1726225239036,0.35734221,58369.0,58368.0,0.097659]
[1726225239225,0.16904559,58369.0,58368.0,0.097659]
[1726225240632,0.16904559,58369.0,58368.0,0.012]
[1726225241037,0.11646421,58369.0,58368.0,0.14254278]
[1726225245635,0.31646421,58369.0,58368.0,0.14254278]
[1726225246236,0.31646421,58369.0,58368.0,0.09698748]
[1726225246540,0.31646421,58369.0,58368.0,0.012]
[1726225248932,0.67726421,58369.0,58368.0,0.012]
[1726225249138,0.76292121,58369.0,58368.0,0.012]
[1726225249439,0.67726421,58369.0,58368.0,0.012]
[1726225249637,0.76292121,58369.0,58368.0,0.012]
[1726225249837,0.67726421,58369.0,58368.0,0.012]
[1726225250038,0.76292121,58369.0,58368.0,0.012]
[1726225250234,1.87688121,58369.0,58368.0,0.012]
[1726225250844,1.96253821,58369.0,58368.0,0.012]
[1726225252349,1.87688121,58369.0,58368.0,0.012]
[1726225252537,0.171326,58365.0,58364.0,0.05096373]
[1726225252737,0.171326,58365.0,58353.0,0.43174846]
[1726225252738,0.171328,58364.0,58363.0,0.05096373]
[1726225252944,0.171328,58364.0,58360.0,0.06797154]
[1726225252945,0.5018,58364.0,58362.0,0.05096373]
[1726225253140,0.2,58363.0,58362.0,0.05096373]
[1726225253541,0.71404,58363.0,58362.0,0.05096373]
[1726225253742,0.71304,58363.0,58362.0,0.05096373]
[1726225254143,0.884372,58363.0,58362.0,0.05096373]
[1726225254344,0.885372,58363.0,58362.0,0.001]
[1726225254545,1.571038,58363.0,58362.0,0.05196373]
[1726225254755,1.056998,58363.0,58362.0,0.001]
[1726225255055,0.457998,58363.0,58362.0,0.001]
[1726225255853,0.087666,58363.0,58362.0,0.13763073]
[1726225256055,0.087666,58363.0,58362.0,0.086667]
[1726225256261,0.11713308,58363.0,58362.0,0.086667]
[1726225258550,0.31713308,58363.0,58362.0,0.086667]
[1726225259057,0.31713308,58363.0,58362.0,0.001]
[1726225261443,0.40279908,58363.0,58362.0,0.001]
[1726225261646,0.45129908,58363.0,58362.0,0.001]
[1726225262050,0.36563308,58363.0,58362.0,0.001]
[1726225262751,0.45129908,58363.0,58362.0,0.001]
[1726225262950,0.36563308,58363.0,58362.0,0.001]
[1726225263461,0.32276773,58363.0,58362.0,0.001]
[1726225265653,0.40843373,58363.0,58362.0,0.001]
[1726225265864,0.32276773,58363.0,58362.0,0.001]
[1726225266361,0.68356773,58363.0,58362.0,0.001]
[1726225270060,0.73615798,58363.0,58362.0,0.001]
[1726225273667,0.68356773,58363.0,58362.0,0.001]
[1726225278168,0.60356773,58363.0,58362.0,0.001]
[1726225279261,0.68923373,58363.0,58362.0,0.001]
[1726225279464,0.68923373,58363.0,58357.0,0.07198114]
[1726225279465,1.80327373,58363.0,58357.0,0.07198114]
[1726225279658,1.80327373,58363.0,58353.0,0.08498748]
[1726225279659,0.171358,58354.0,58353.0,0.004]
[1726225279861,0.085684,58351.0,58349.0,0.06798114]
[1726225280064,0.12,58350.0,58349.0,0.06798114]
[1726225280272,0.12,58350.0,58348.0,0.085687]
[1726225280467,0.12,58350.0,58345.0,0.08498748]
[1726225280666,0.205685,58350.0,58345.0,0.08498748]
[1726225280969,0.205685,58350.0,58349.0,0.06809576]
[1726225281171,0.205685,58350.0,58348.0,0.085688]
[1726225281469,0.12,58349.0,58348.0,0.085688]
[1726225281866,0.085689,58348.0,58347.0,0.06809576]
[1726225282169,0.2,58348.0,58344.0,0.06809576]
[1726225282356,0.085692,58345.0,58343.0,0.085695]
[1726225282560,0.2,58344.0,58343.0,0.085695]
[1726225283675,0.285694,58344.0,58343.0,0.085695]
[1726225283867,0.085696,58343.0,58340.0,0.06809576]
[1726225284360,0.201,58344.0,58342.0,0.085695]
[1726225285065,0.202,58344.0,58342.0,0.085695]
[1726225285461,0.085695,58343.0,58342.0,0.085695]
[1726225285971,0.085698,58342.0,58339.0,0.085701]
[1726225286174,0.2,58340.0,58339.0,0.085701]
[1726225287468,0.201,58340.0,58339.0,0.085701]
[1726225287867,0.2867,58340.0,58339.0,0.085701]
[1726225288580,0.2877,58340.0,58339.0,0.085701]
[1726225289579,0.002,58340.0,58339.0,0.085701]
[1726225289766,0.0877,58340.0,58339.0,0.085701]
[1726225290466,0.2877,58340.0,58339.0,0.085701]
[1726225294888,0.2,58340.0,58339.0,0.085701]
[1726225295268,0.2857,58340.0,58339.0,0.085701]
[1726225295968,0.085703,58338.0,58337.0,0.19927363]
[1726225296585,0.085703,58338.0,58337.0,0.11428615]
[1726225297377,0.086703,58338.0,58337.0,0.11428615]
[1726225298383,0.171408,58337.0,58336.0,0.08498748]
[1726225298582,0.171408,58337.0,58335.0,0.08498748]
[1726225298583,0.171412,58336.0,58335.0,0.08498748]
[1726225298772,0.085707,58335.0,58334.0,0.08498748]
[1726225298967,0.085707,58335.0,58332.0,0.17069848]
[1726225298968,0.08571,58333.0,58332.0,0.17069848]
[1726225299176,0.28571,58333.0,58332.0,0.3013218]
[1726225299371,0.28571,58333.0,58332.0,0.08498748]
[1726225299577,0.28571,58333.0,58327.0,0.10194846]
[1726225299578,0.085711,58332.0,58331.0,0.0848902]
[1726225299887,0.084713,58331.0,58330.0,0.0848902]
[1726225300079,0.284713,58331.0,58330.0,0.21551537]
[1726225300384,0.284713,58331.0,58330.0,0.0848902]
[1726225300574,0.084714,58330.0,58329.0,0.1706062]
[1726225300776,0.084714,58330.0,58329.0,0.30123274]
[1726225301184,0.531228,58330.0,58329.0,0.21551674]
[1726225301375,0.084719,58327.0,58326.0,0.19917727]
[1726225301572,0.284719,58327.0,58326.0,0.11428707]
[1726225302784,0.285719,58327.0,58326.0,0.11428707]
[1726225303881,0.286719,58327.0,58326.0,0.11428707]
[1726225304281,0.286719,58327.0,58326.0,0.08572]
[1726225306092,0.206719,58327.0,58326.0,0.08572]
[1726225306889,0.002,58327.0,58326.0,0.20572]
[1726225307477,0.002,58327.0,58326.0,0.33635665]
[1726225307780,0.002,58327.0,58326.0,0.3363528]
[1726225308186,0.002,58327.0,58326.0,0.386961]
[1726225308489,0.40562755,58330.0,58329.0,0.085716]
[1726225309692,0.40662755,58330.0,58329.0,0.085716]
[1726225309891,0.32091355,58330.0,58329.0,0.085716]
[1726225310082,0.32191355,58330.0,58329.0,0.085716]
[1726225310284,0.32191355,58330.0,58329.0,0.17063223]
[1726225310478,0.002,58330.0,58329.0,0.25634823]
[1726225310689,0.002,58330.0,58329.0,0.38697906]
[1726225311198,0.002,58330.0,58329.0,0.38777883]
[1726225311396,0.085698,58341.0,58337.0,0.085704]
[1726225311699,0.085698,58341.0,58340.0,0.0857]
[1726225312503,0.085698,58341.0,58340.0,0.15368053]
[1726225313202,0.36176001,58342.0,58341.0,0.085698]
[1726225313407,0.3608,58342.0,58341.0,0.15368225]
[1726225313598,0.446497,58342.0,58341.0,0.15368225]
[1726225314505,0.446497,58342.0,58341.0,0.085698]
[1726225314806,0.3608,58342.0,58341.0,0.085698]
[1726225315207,0.3618,58342.0,58341.0,0.085698]
[1726225315410,0.3628,58342.0,58341.0,0.086698]
[1726225324006,0.3628,58342.0,58341.0,0.172396]
[1726225324601,0.3628,58342.0,58341.0,0.258094]
[1726225330314,0.002,58342.0,58341.0,0.38869985]
[1726225331916,0.122,58342.0,58341.0,0.38869985]
[1726225333817,0.207697,58342.0,58341.0,0.13160585]
[1726225334017,0.654194,58342.0,58341.0,0.001]
[1726225334218,0.654194,58342.0,58341.0,0.06898737]
[1726225334418,0.654194,58342.0,58341.0,0.001]
[1726225335524,0.654194,58342.0,58341.0,0.06898737]
[1726225336026,0.654194,58342.0,58341.0,0.06798737]
[1726225336418,0.085701,58339.0,58338.0,0.08496441]
[1726225336618,0.205701,58339.0,58338.0,0.21558175]
[1726225337531,0.205701,58339.0,58338.0,0.21568103]
[1726225337710,0.206701,58339.0,58338.0,0.13061734]
[1726225338123,0.206701,58339.0,58338.0,0.21632034]
[1726225338726,0.001,58339.0,58338.0,0.57712034]
[1726225339226,0.002,58339.0,58338.0,0.73609112]
[1726225339729,0.08569,58347.0,58346.0,0.085689]
[1726225339913,0.08569,58347.0,58346.0,0.3013673]
[1726225340118,0.08569,58347.0,58346.0,0.2162918]
[1726225340825,0.20569,58347.0,58346.0,0.2162918]
[1726225342328,0.28569,58347.0,58346.0,0.2162918]
[1726225343624,0.64649,58347.0,58346.0,0.2162918]
[1726225343825,0.28569,58347.0,58346.0,0.2162918]
[1726225344326,0.64649,58347.0,58346.0,0.2162918]
[1726225344930,0.28569,58347.0,58346.0,0.2162921]
[1726225345126,0.64649,58347.0,58346.0,0.2162921]
[1726225345328,0.69909432,58347.0,58346.0,0.085689]
[1726225345531,0.33829432,58347.0,58346.0,0.085689]
[1726225346218,0.28569,58347.0,58346.0,0.085689]
[1726225350120,0.2,58350.0,58344.0,0.3608]
[1726225350322,0.17119371,58354.0,58353.0,0.085681]
[1726225350528,0.17119371,58354.0,58349.0,0.3608]
[1726225350529,0.36176001,58355.0,58354.0,0.085679]
[1726225350725,0.3608,58355.0,58354.0,0.171358]
[1726225351021,0.3608,58355.0,58354.0,0.085679]
[1726225351229,0.646478,58355.0,58354.0,0.085679]
[1726225351426,0.5608,58355.0,58354.0,0.085679]
[1726225353140,0.5688,58355.0,58354.0,0.085679]
[1726225353739,0.5748,58355.0,58354.0,0.085679]
[1726225353932,0.3748,58355.0,58354.0,0.17078462]
[1726225354235,0.014,58355.0,58354.0,0.085679]
[1726225354629,0.014,58355.0,58354.0,0.171358]
[1726225354833,0.014,58355.0,58354.0,0.7648227]
[1726225355726,0.014,58355.0,58354.0,0.6791437]
[1726225356838,0.014,58355.0,58354.0,0.57705413]
[1726225357043,0.014,58355.0,58354.0,0.66197492]
[1726225357343,0.014,58355.0,58354.0,0.53139979]
[1726225357732,0.014,58355.0,58354.0,0.446479]
[1726225359940,0.014,58355.0,58354.0,0.085679]
[1726225360543,0.05595909,58355.0,58354.0,0.085679]
[1726225363437,0.14163709,58355.0,58354.0,0.085679]
[1726225366045,0.34163709,58355.0,58354.0,0.085679]
[1726225366848,0.42731509,58355.0,58354.0,0.085679]
[1726225367047,0.65110192,58355.0,58354.0,0.085679]
[1726225367232,0.47990821,58355.0,58354.0,0.085679]
[1726225367437,0.39423021,58355.0,58354.0,0.085679]
[1726225367745,0.56513863,58355.0,58354.0,0.085679]
[1726225368340,0.39423021,58355.0,58354.0,0.085679]
[1726225368541,0.299678,58355.0,58354.0,0.15357648]
[1726225369337,0.385356,58355.0,58354.0,0.06789748]
[1726225369951,0.299678,58355.0,58354.0,0.06789748]
[1726225371342,0.385356,58355.0,58354.0,0.06789748]
[1726225374249,0.085681,58353.0,58352.0,0.085682]
[1726225374954,0.0934,58354.0,58351.0,0.085684]
[1726225374955,0.085682,58352.0,58351.0,0.085684]
[1726225375140,0.205682,58352.0,58351.0,0.17060479]
[1726225375544,0.205682,58352.0,58351.0,0.085684]
[1726225376347,0.209682,58352.0,58351.0,0.085684]
[1726225376849,0.211682,58352.0,58351.0,0.085684]
[1726225380550,0.25364471,58352.0,58351.0,0.085684]
[1726225380752,0.085689,58349.0,58348.0,0.085687]
[1726225380942,0.205689,58349.0,58348.0,0.085687]
[1726225382452,0.085694,58345.0,58344.0,0.08569]
[1726225382654,0.12,58345.0,58344.0,0.21628263]
[1726225382849,0.205692,58345.0,58344.0,0.21628263]
[1726225383254,0.205692,58345.0,58344.0,0.30137434]
[1726225385148,0.206692,58345.0,58344.0,0.30137434]
[1726225385347,0.207692,58345.0,58344.0,0.30237434]
[1726225387449,0.207692,58345.0,58344.0,0.30237522]
[1726225388047,0.087692,58345.0,58344.0,0.30237522]
[1726225388256,0.207692,58345.0,58344.0,0.30237522]
[1726225390563,0.207692,58345.0,58344.0,0.08669]
[1726225393261,0.207692,58345.0,58344.0,0.15475111]
[1726225394160,0.002,58345.0,58344.0,0.15475111]
[1726225394468,0.002,58345.0,58344.0,0.13529]
[1726225395176,0.087692,58345.0,58344.0,0.13529]
[1726225397570,0.14029225,58345.0,58344.0,0.13529]
[1726225398158,0.25898386,58345.0,58344.0,0.13529]
[1726225398358,0.31158411,58345.0,58344.0,0.13529]
[1726225400669,0.14029225,58345.0,58344.0,0.13529]
[1726225401079,0.14029225,58345.0,58344.0,0.001]
[1726225401080,0.58678425,58345.0,58344.0,0.001]
[1726225401281,0.171406,58338.0,58336.0,0.004]
[1726225401462,0.085706,58336.0,58335.0,0.085706]
[1726225401662,0.446502,58339.0,58338.0,0.085703]
[1726225401982,0.61911377,58339.0,58338.0,0.085703]
[1726225402174,0.61911122,58339.0,58338.0,0.085703]
[1726225402472,0.566502,58339.0,58338.0,0.085703]
[1726225402668,0.205702,58339.0,58338.0,0.085703]
[1726225403072,0.206702,58339.0,58338.0,0.085703]
[1726225403479,0.207702,58339.0,58338.0,0.086703]
[1726225404565,0.26030942,58339.0,58338.0,0.086703]
[1726225405277,0.207702,58339.0,58338.0,0.086703]
[1726225405573,0.207702,58339.0,58338.0,0.31940413]
[1726225405777,0.19385847,58339.0,58338.0,0.31940413]
[1726225406272,0.19385847,58339.0,58338.0,0.21731456]
[1726225412383,0.002,58339.0,58338.0,0.21731456]
[1726225412577,0.002,58339.0,58338.0,0.086703]
[1726225412774,0.122,58339.0,58338.0,0.086703]
[1726225415980,0.207701,58339.0,58338.0,0.086703]
[1726225417084,0.293402,58339.0,58338.0,0.001]
[1726225417283,0.654202,58339.0,58338.0,0.001]
[1726225418976,0.085711,58332.0,58331.0,0.093712]
[1726225419176,0.085711,58332.0,58331.0,0.085712]
[1726225420786,0.085711,58332.0,58331.0,0.31842624]
[1726225421178,0.087711,58332.0,58331.0,0.31842624]
[1726225421580,0.087711,58332.0,58331.0,0.31842621]
[1726225422377,0.087711,58332.0,58331.0,0.21633664]
[1726225422579,0.087711,58332.0,58331.0,0.13062464]
[1726225423187,0.087711,58332.0,58331.0,0.21567918]
[1726225423489,0.085713,58331.0,58330.0,0.08505454]
[1726225423687,0.251013,58331.0,58330.0,0.08505454]
[1726225423878,0.171428,58330.0,58329.0,0.08505454]
[1726225424079,0.339528,58330.0,58329.0,0.08505454]
[1726225424283,0.085716,58329.0,58328.0,0.08505454]
[1726225424486,0.205716,58329.0,58328.0,0.21569442]
[1726225424689,0.566516,58329.0,58325.0,0.08505454]
[1726225424984,0.20572,58326.0,58325.0,0.08505454]
[1726225425187,0.085722,58325.0,58324.0,0.08505454]
[1726225425380,0.085723,58324.0,58323.0,0.17077954]
[1726225425577,0.132923,58324.0,58323.0,0.30142656]
[1726225425782,0.132923,58324.0,58321.0,0.08505454]